fUSD/lending_fUSD_20250112
["ID","MTS","AMOUNT","RATE_DAILY","PERIOD"]
[348645791,1736697079371,-2072.93,0.00011717,2]
[348645792,1736697079390,-500.0,0.00011717,2]
[348645793,1736697079405,-1147.23,0.00011717,2]
[348645794,1736697079423,-967.28,0.00011717,2]
[348645795,1736697079442,-3016.7,0.00011717,2]
[348645796,1736697079457,-500.0,0.00011717,2]
[348645797,1736697079475,-1223.14,0.00011717,2]
[348645798,1736697079494,-544.25549633,0.00011717,2]
[348645799,1736697079516,-2536.94,0.00011717,2]
[348645800,1736697079535,-508.96,0.00011717,2]
[348645801,1736697079552,-8763.14,0.00011717,2]
[348645802,1736697079571,-2810.61,0.00011717,2]
[348645803,1736697079587,-2693.5,0.00011717,2]
[348645804,1736697079601,-500.0,0.00011717,2]
[348645805,1736697079619,-948.79,0.00011717,2]
[348645806,1736697079632,-500.0,0.00011717,2]
[348645807,1736697079650,-1322.63,0.00011717,2]
[348645808,1736697079665,-505.41,0.00011717,2]
[348645809,1736697079680,-2001.07,0.00011717,2]
[348645810,1736697079695,-2517.71,0.00011717,2]
[348645811,1736697079710,-500.0,0.00011717,2]
[348645812,1736697079724,-500.0,0.00011717,2]
[348645813,1736697079745,-2409.15,0.00011717,2]
[348645814,1736697079760,-1313.54,0.00011717,2]
[348645815,1736697079775,-2545.11,0.00011717,2]
[348645816,1736697079789,-720.83,0.00011717,2]
[348645817,1736697079804,-1463.12,0.00011717,2]
[348645818,1736697079819,-633.45,0.00011717,2]
[348645819,1736697079834,-3650.22,0.00011717,2]
[348645820,1736697079848,-2221.48,0.00011717,2]
[348645821,1736697079869,-500.0,0.00011717,2]
[348645822,1736697079886,-905.13,0.00011717,2]
[348645823,1736697079902,-456.4065487,0.00011717,2]
[348645824,1736697079917,-1406.9,0.00011717,2]
[348645825,1736697079931,-4088.45,0.00011717,2]
[348645826,1736697079946,-2387.93,0.00011717,2]
[348645827,1736697079960,-500.0,0.00011717,2]
[348645828,1736697079974,-3256.32,0.00011717,2]
[348645829,1736697079989,-672.97,0.00011717,2]
[348645830,1736697080004,-567.47,0.00011717,2]
[348645831,1736697080019,-572.62288375,0.00011717,2]
[348645832,1736697080032,-785.13,0.00011717,2]
[348645833,1736697080047,-500.0,0.00011717,2]
[348645834,1736697080061,-1201.01,0.00011717,2]
[348645835,1736697080076,-1852.27,0.00011717,2]
[348645836,1736697080091,-500.0,0.00011717,2]
[348645837,1736697080106,-1285.04,0.00011717,2]
[348645838,1736697080122,-785.24,0.00011717,2]
[348645839,1736697080137,-603.94,0.00011717,2]
[348645840,1736697080152,-150.0,0.00011729,2]
[348645841,1736697080167,-433.0,0.00011736,2]
[348645842,1736697080181,-2707.36070245,0.00011755,2]
[348645843,1736697080195,-500.0,0.0001178,2]
[348645844,1736697080210,-500.0,0.0001178,2]
[348645845,1736697080224,-500.0,0.0001178,2]
[348645846,1736697080238,-607.7,0.0001178,2]
[348645847,1736697080252,-500.0,0.0001178,2]
[348645848,1736697080266,-500.0,0.0001178,2]
[348645849,1736697080280,-500.0,0.0001178,2]
[348645850,1736697080294,-500.0,0.0001178,2]
[348645851,1736697080307,-500.0,0.0001178,2]
[348645852,1736697080321,-500.0,0.0001178,2]
[348645853,1736697080337,-897.41,0.0001178,2]
[348645854,1736697080351,-500.0,0.0001178,2]
[348645855,1736697080368,-500.0,0.0001178,2]
[348645856,1736697080382,-651.1,0.0001178,2]
[348645857,1736697080397,-500.0,0.0001178,2]
[348645858,1736697080412,-573.91,0.0001178,2]
[348645859,1736697080426,-500.0,0.0001178,2]
[348645860,1736697080441,-500.0,0.0001178,2]
[348645861,1736697080455,-500.0,0.0001178,2]
[348645862,1736697080471,-500.0,0.0001178,2]
[348645863,1736697080485,-500.0,0.0001178,2]
[348645864,1736697080500,-500.0,0.0001178,2]
[348645865,1736697080515,-500.0,0.0001178,2]
[348645866,1736697080530,-708.77,0.0001178,2]
[348645867,1736697080544,-622.73,0.0001178,2]
[348645868,1736697080559,-500.0,0.0001178,2]
[348645869,1736697080577,-677.81,0.0001178,2]
[348645870,1736697080592,-512.50335751,0.0001178,2]
[348645871,1736697080606,-600.78,0.0001178,2]
[348645872,1736697080621,-500.0,0.0001178,2]
[348645873,1736697080636,-500.0,0.0001178,2]
[348645874,1736697080650,-500.0,0.0001178,2]
[348645875,1736697080666,-500.0,0.0001178,2]
[348645876,1736697080681,-508.11,0.0001178,2]
[348645877,1736697080695,-500.0,0.0001178,2]
[348645878,1736697080711,-500.0,0.0001178,2]
[348645879,1736697080726,-500.0,0.0001178,2]
[348645880,1736697080740,-605.63,0.0001178,2]
[348645881,1736697080755,-500.0,0.0001178,2]
[348645882,1736697080951,-611.43,0.0001178,2]
[348645883,1736697080961,-573.28,0.0001178,2]
[348645884,1736697080971,-807.75,0.0001178,2]
[348645885,1736697080981,-500.0,0.0001178,2]
[348645886,1736697080990,-500.0,0.0001178,2]
[348645887,1736697080999,-885.24,0.0001178,2]
[348645888,1736697081008,-677.43,0.0001178,2]
[348645889,1736697081018,-538.14,0.0001178,2]
[348645890,1736697081028,-683.1,0.0001178,2]
[348645891,1736697081038,-582.99,0.0001178,2]
[348645892,1736697081047,-732.47,0.0001178,2]
[348645893,1736697081056,-659.43,0.0001178,2]
[348645894,1736697081066,-500.0,0.0001178,2]
[348645895,1736697081075,-500.0,0.0001178,2]
[348645896,1736697081084,-677.35,0.0001178,2]
[348645897,1736697081093,-500.0,0.0001178,2]
[348645898,1736697081103,-550.29,0.0001178,2]
[348645899,1736697081113,-508.0,0.0001178,2]
[348645900,1736697081122,-500.0,0.0001178,2]
[348645901,1736697081131,-500.0,0.0001178,2]
[348645902,1736697081141,-633.26,0.0001178,2]
[348645903,1736697081150,-500.0,0.0001178,2]
[348645904,1736697081160,-500.0,0.0001178,2]
[348645905,1736697081169,-500.0,0.0001178,2]
[348645906,1736697081177,-500.0,0.0001178,2]
[348645907,1736697081186,-615.11,0.0001178,2]
[348645908,1736697081194,-500.0,0.0001178,2]
[348645909,1736697081202,-626.46,0.0001178,2]
[348645910,1736697081211,-500.0,0.0001178,2]
[348645911,1736697081220,-500.0,0.0001178,2]
[348645912,1736697081231,-641.64,0.0001178,2]
[348645913,1736697081241,-750.91,0.0001178,2]
[348645914,1736697081251,-887.79,0.0001178,2]
[348645915,1736697081262,-500.0,0.0001178,2]
[348645916,1736697081272,-500.0,0.0001178,2]
[348645917,1736697081281,-500.0,0.0001178,2]
[348645918,1736697081291,-566.54,0.0001178,2]
[348645919,1736697081302,-500.0,0.0001178,2]
[348645920,1736697081312,-500.0,0.0001178,2]
[348645921,1736697081321,-1010.06,0.0001178,2]
[348645922,1736697081332,-873.67,0.0001178,2]
[348645923,1736697081341,-500.0,0.0001178,2]
[348645924,1736697081353,-1283.08,0.0001178,2]
[348645925,1736697081362,-989.43,0.0001178,2]
[348645926,1736697081373,-500.0,0.0001178,2]
[348645927,1736697081382,-655.72,0.0001178,2]
[348645928,1736697081391,-500.0,0.0001178,2]
[348645929,1736697081401,-516.2403411,0.0001178,2]
[348645930,1736697081411,-628.62,0.0001178,2]
[348645931,1736697081421,-500.0,0.0001178,2]
[348645932,1736697081430,-541.0,0.0001178,2]
[348645933,1736697081441,-500.0,0.0001178,2]
[348645934,1736697081453,-768.84,0.0001178,2]
[348645935,1736697081463,-581.22,0.0001178,2]
[348645936,1736697081473,-500.0,0.0001178,2]
[348645937,1736697081482,-500.0,0.0001178,2]
[348645938,1736697081491,-510.04,0.0001178,2]
[348645939,1736697081500,-500.0,0.0001178,2]
[348645940,1736697081510,-897.21,0.0001178,2]
[348645941,1736697081521,-553.28,0.0001178,2]
[348645942,1736697081530,-500.0,0.0001178,2]
[348645943,1736697081540,-661.81,0.00011781,2]
[348645944,1736697081550,-3286.55,0.00011781,2]
[348645945,1736697081559,-541.11,0.00011781,2]
[348645946,1736697081568,-826.26,0.00011781,2]
[348645947,1736697081578,-3187.41,0.00011781,2]
[348645948,1736697081587,-758.23,0.00011781,2]
[348645949,1736697081596,-642.94,0.00011781,2]
[348645950,1736697081607,-562.05,0.00011781,2]
[348645951,1736697081616,-849.12,0.00011781,2]
[348645952,1736697081625,-500.0,0.00011781,2]
[348645953,1736697081635,-1543.68,0.00011781,2]
[348645954,1736697081644,-564.14,0.00011781,2]
[348645955,1736697081654,-500.0,0.00011781,2]
[348645956,1736697081664,-1103.08,0.00011781,2]
[348645957,1736697081673,-3717.27,0.00011781,2]
[348645958,1736697081683,-700.7,0.00011781,2]
[348645959,1736697081693,-1059.0,0.00011781,2]
[348645960,1736697081703,-500.0,0.00011781,2]
[348645961,1736697081713,-1152.57,0.00011781,2]
[348645962,1736697081723,-500.0,0.00011781,2]
[348645963,1736697081732,-724.12,0.00011781,2]
[348645964,1736697081742,-861.44,0.00011781,2]
[348645965,1736697081751,-500.0,0.00011781,2]
[348645966,1736697081761,-500.0,0.00011781,2]
[348645967,1736697081772,-1488.76,0.00011781,2]
[348645968,1736697081783,-1175.02,0.00011781,2]
[348645969,1736697081792,-1597.05,0.00011781,2]
[348645970,1736697081803,-1574.14,0.00011781,2]
[348645971,1736697081815,-2211.26,0.00011781,2]
[348645972,1736697081825,-2119.12,0.00011781,2]
[348645973,1736697081835,-1594.15,0.00011781,2]
[348645974,1736697081844,-2130.38,0.00011781,2]
[348645975,1736697081853,-1172.47,0.00011781,2]
[348645976,1736697081863,-2794.07,0.00011781,2]
[348645977,1736697081877,-1539.11,0.00011781,2]
[348645978,1736697081886,-1212.36,0.00011781,2]
[348645979,1736697081895,-4615.15,0.00011781,2]
[348645980,1736697081904,-989.21,0.00011781,2]
[348645981,1736697081916,-988.3,0.00011781,2]
[348645982,1736697081926,-150.0,0.000118,2]
[348645983,1736697081935,-24216.89,0.00011826,4]
[348645984,1736697081946,-2707.36070245,0.00011828,2]
[348645985,1736697081956,-150.0,0.00011859,2]
[348645986,1736697081967,-150.0,0.00011864,2]
[348645987,1736697081976,-903.08,0.00011881,2]
[348645988,1736697081987,-669.21,0.00011881,2]
[348645989,1736697081997,-688.56,0.00011881,2]
[348645990,1736697082007,-500.0,0.00011881,2]
[348645991,1736697082016,-885.95,0.00011881,2]
[348645992,1736697082026,-611.64,0.00011881,2]
[348645993,1736697082035,-814.39,0.00011881,2]
[348645994,1736697082045,-548.55,0.00011881,2]
[348645995,1736697082054,-500.0,0.00011881,2]
[348645996,1736697082064,-500.0,0.00011881,2]
[348645997,1736697082073,-764.62,0.00011881,2]
[348645998,1736697082084,-652.34,0.00011881,2]
[348645999,1736697082094,-500.0,0.00011881,2]
[348646000,1736697082104,-500.0,0.00011881,2]
[348646001,1736697082113,-830.72,0.00011881,2]
[348646002,1736697082123,-756.13,0.00011881,2]
[348646003,1736697082133,-526.8,0.00011881,2]
[348646004,1736697082142,-513.62,0.00011881,2]
[348646005,1736697082151,-500.0,0.00011881,2]
[348646006,1736697082161,-750.84,0.00011881,2]
[348646007,1736697082170,-500.0,0.00011881,2]
[348646008,1736697082180,-500.0,0.00011881,2]
[348646009,1736697082189,-970.91,0.00011881,2]
[348646010,1736697082199,-500.0,0.00011881,2]
[348646011,1736697082209,-669.43,0.00011881,2]
[348646012,1736697082218,-859.87,0.00011881,2]
[348646013,1736697082227,-500.0,0.00011881,2]
[348646014,1736697082237,-500.0,0.00011881,2]
[348646015,1736697082246,-971.19,0.00011881,2]
[348646016,1736697082256,-542.43,0.00011881,2]
[348646017,1736697082266,-500.0,0.00011881,2]
[348646018,1736697082276,-675.05,0.00011881,2]
[348646019,1736697082287,-500.0,0.00011881,2]
[348646020,1736697082297,-500.0,0.00011881,2]
[348646021,1736697082308,-1015.09,0.00011881,2]
[348646022,1736697082318,-865.52,0.00011881,2]
[348646023,1736697082329,-671.39,0.00011881,2]
[348646024,1736697082339,-500.0,0.00011881,2]
[348646025,1736697082348,-956.97,0.00011881,2]
[348646026,1736697082358,-500.0,0.00011881,2]
[348646027,1736697082368,-879.51,0.00011881,2]
[348646028,1736697082378,-811.4,0.00011881,2]
[348646029,1736697082387,-616.16,0.00011881,2]
[348646030,1736697082396,-909.19,0.00011881,2]
[348646031,1736697082406,-909.34,0.00011881,2]
[348646032,1736697082415,-602.81,0.00011881,2]
[348646033,1736697082425,-719.32,0.00011881,2]
[348646034,1736697082434,-1857.19,0.00011881,2]
[348646035,1736697082443,-500.0,0.00011881,2]
[348646036,1736697082452,-718.02,0.00011881,2]
[348646037,1736697082462,-531.49,0.00011881,2]
[348646038,1736697082471,-840.11,0.00011881,2]
[348646039,1736697082480,-530.4,0.00011881,2]
[348646040,1736697082491,-995.57,0.00011881,2]
[348646041,1736697082500,-616.45,0.00011881,2]
[348646042,1736697082509,-500.0,0.00011881,2]
[348646043,1736697082518,-261.23793804,0.00011881,2]
[348646044,1736697082528,-941.17,0.00011881,2]
[348646045,1736697082537,-4755.32,0.00011881,2]
[348646046,1736697082547,-1038.78,0.00011881,2]
[348646047,1736697082556,-681.9,0.00011881,2]
[348646048,1736697082566,-1057.81,0.00011881,2]
[348646049,1736697082575,-1304.82,0.00011881,2]
[348646050,1736697082586,-876.54,0.00011881,2]
[348646051,1736697082596,-530.36,0.00011881,2]
[348646052,1736697082606,-926.71,0.00011881,2]
[348646053,1736697082616,-3630.65,0.00011881,2]
[348646054,1736697082625,-928.78,0.00011881,2]
[348646055,1736697082634,-511.33,0.00011881,2]
[348646056,1736697082644,-607.56,0.00011881,2]
[348646057,1736697082653,-500.0,0.00011881,2]
[348646058,1736697082662,-652.54,0.00011881,2]
[348646059,1736697082671,-876.52,0.00011881,2]
[348646060,1736697082680,-933.85,0.00011881,2]
[348646061,1736697082690,-500.0,0.00011881,2]
[348646062,1736697082699,-835.24,0.00011881,2]
[348646063,1736697082708,-1557.36,0.00011882,2]
[348646064,1736697082718,-2525.02,0.00011882,2]
[348646065,1736697082728,-1114.65,0.00011883,2]
[348646066,1736697082740,-710.95,0.00011883,2]
[348646067,1736697082749,-826.55,0.00011883,2]
[348646068,1736697082759,-2055.37,0.00011883,2]
[348646069,1736697082769,-500.0,0.00011883,2]
[348646070,1736697082778,-929.05,0.00011883,2]
[348646071,1736697082788,-1280.25,0.00011883,2]
[348646072,1736697082798,-1692.05,0.00011883,2]
[348646073,1736697082807,-511.69,0.00011883,2]
[348646074,1736697082817,-151.0,0.00011884,2]
[348646075,1736697082828,-500.0,0.00011891,2]
[348646076,1736697082838,-500.0,0.00011891,2]
[348646077,1736697082847,-2304.99,0.00011892,2]
[348646078,1736697082856,-2029.77,0.00011892,2]
[348646079,1736697082869,-3551.0,0.000119,2]
[348646080,1736697082879,-956.09,0.000119,2]
[348646081,1736697082889,-500.0,0.000119,2]
[348646082,1736697082900,-2118.02,0.000119,2]
[348646083,1736697082911,-1000.0,0.000119,2]
[348646084,1736697082920,-2707.36070245,0.000119,2]
[348646085,1736697083050,-500.0,0.00011917,2]
[348646086,1736697083060,-3599.07,0.00011917,2]
[348646087,1736697083071,-1288.35,0.00011917,2]
[348646088,1736697083080,-750.48,0.00011917,2]
[348646089,1736697083090,-500.0,0.00011917,2]
[348646090,1736697083099,-1532.98,0.00011917,2]
[348646091,1736697083108,-1003.85,0.00011917,2]
[348646092,1736697083118,-752.39,0.00011917,2]
[348646093,1736697083128,-686.26,0.00011917,2]
[348646094,1736697083137,-1517.54,0.00011917,2]
[348646095,1736697083146,-1041.09,0.00011917,2]
[348646096,1736697083155,-1690.55,0.00011917,2]
[348646097,1736697083165,-656.28,0.00011917,2]
[348646098,1736697083175,-1441.36,0.00011917,2]
[348646099,1736697083184,-957.88,0.00011917,2]
[348646100,1736697083194,-3318.45,0.00011917,2]
[348646101,1736697083204,-1586.76,0.00011917,2]
[348646102,1736697083215,-7074.40821328,0.0001198,2]
[348646103,1736697083226,-1020.0,0.0001199,7]
[348646104,1736697083236,-1025.85,0.00011991,2]
[348646105,1736697083245,-1000.86,0.00011991,2]
[348646106,1736697083255,-1807.13,0.00011991,2]
[348646107,1736697083264,-1731.84,0.00011991,2]
[348646108,1736697083274,-500.0,0.00011991,2]
[348646109,1736697083285,-500.0,0.00011991,2]
[348646110,1736697083294,-500.0,0.00011991,2]
[348646111,1736697083306,-500.0,0.00011991,2]
[348646112,1736697083317,-618.29,0.00011991,2]
[348646113,1736697083328,-500.0,0.00011991,2]
[348646114,1736697083337,-2072.93,0.00011991,2]
[348646115,1736697083347,-500.0,0.00011991,2]
[348646116,1736697083356,-1147.23,0.00011991,2]
[348646117,1736697083365,-967.28,0.00011991,2]
[348646118,1736697083375,-3016.7,0.00011991,2]
[348646119,1736697083384,-500.0,0.00011991,2]
[348646120,1736697083395,-1223.14,0.00011991,2]
[348646121,1736697083405,-2536.94,0.00011991,2]
[348646122,1736697083415,-508.96,0.00011991,2]
[348646123,1736697083424,-8763.14,0.00011991,2]
[348646124,1736697083435,-2810.61,0.00011991,2]
[348646125,1736697083445,-2693.5,0.00011991,2]
[348646126,1736697083455,-500.0,0.00011991,2]
[348646127,1736697083465,-948.79,0.00011991,2]
[348646128,1736697083475,-500.0,0.00011991,2]
[348646129,1736697083486,-1322.63,0.00011991,2]
[348646130,1736697083495,-505.41,0.00011991,2]
[348646131,1736697083504,-2001.07,0.00011991,2]
[348646132,1736697083514,-2517.71,0.00011991,2]
[348646133,1736697083523,-500.0,0.00011991,2]
[348646134,1736697083532,-500.0,0.00011991,2]
[348646135,1736697083542,-2409.15,0.00011991,2]
[348646136,1736697083551,-1313.54,0.00011991,2]
[348646137,1736697083560,-2545.11,0.00011991,2]
[348646138,1736697083570,-720.83,0.00011991,2]
[348646139,1736697083580,-1463.12,0.00011991,2]
[348646140,1736697083589,-633.45,0.00011991,2]
[348646141,1736697083599,-3650.22,0.00011991,2]
[348646142,1736697083608,-2221.48,0.00011991,2]
[348646143,1736697083617,-500.0,0.00011991,2]
[348646144,1736697083627,-905.13,0.00011991,2]
[348646145,1736697083637,-1406.9,0.00011991,2]
[348646146,1736697083646,-4088.45,0.00011991,2]
[348646147,1736697083656,-2387.93,0.00011991,2]
[348646148,1736697083665,-500.0,0.00011991,2]
[348646149,1736697083675,-3256.32,0.00011991,2]
[348646150,1736697083684,-672.97,0.00011991,2]
[348646151,1736697083693,-567.47,0.00011991,2]
[348646152,1736697083702,-785.13,0.00011991,2]
[348646153,1736697083712,-500.0,0.00011991,2]
[348646154,1736697083721,-1201.01,0.00011991,2]
[348646155,1736697083730,-1852.27,0.00011991,2]
[348646156,1736697083739,-500.0,0.00011991,2]
[348646157,1736697083748,-1285.04,0.00011991,2]
[348646158,1736697083757,-785.24,0.00011991,2]
[348646159,1736697083767,-603.94,0.00011991,2]
[348646160,1736697083776,-35650.4589706,0.00011999,2]
[348646161,1736697083785,-151.0,0.00011999,2]
[348646162,1736697083794,-302547.3588004,0.00012,4]
[348646163,1736697083803,-1148002.15682002,0.00012,2]
[348646164,1736697084154,-1005.0,0.00012,2]
[348646165,1736697084166,-1660.47195762,0.00012,2]
[348646166,1736697084179,-18468.42666628,0.00012,2]
[348646167,1736697084190,-8390.41828939,0.00012,2]
[348646168,1736697084208,-341.24596483,0.00012,2]
[348646169,1736697084219,-10453.75048581,0.00012,2]
[348646170,1736697084252,-13136.5,0.00012,2]
[348646171,1736697084264,-531.06932274,0.00012,2]
[348646172,1736697084275,-10260.24879013,0.00012,2]
[348646173,1736697084287,-12489.50476251,0.00012,2]
[348646174,1736697084766,-500.0,9.799e-05,2]
[348646175,1736697084776,-274.6985844,9.799e-05,2]
[348646176,1736697084790,-811.0114156,9.799e-05,2]
[348646177,1736697084800,-6554.48,9.964e-05,2]
[348646178,1736697084810,-1000.0,9.965e-05,2]
[348646179,1736697084820,-1085.71,0.00010073,2]
[348646180,1736697084831,-500.0,0.00010073,2]
[348646181,1736697084840,-6554.48,0.00010238,2]
[348646182,1736697084849,-1000.0,0.00010239,2]
[348646183,1736697084859,-1085.71,0.00010347,2]
[348646184,1736697084873,-500.0,0.00010347,2]
[348646185,1736697084883,-1085.71,0.00010621,2]
[348646186,1736697084893,-500.0,0.00010621,2]
[348646187,1736697084902,-1501.28,0.00010821,2]
[348646188,1736697084913,-1085.71,0.00010895,2]
[348646189,1736697084923,-500.0,0.00010895,2]
[348646190,1736697084932,-1501.28,0.00011095,2]
[348646191,1736697084942,-500.0,0.00011169,2]
[348646192,1736697084951,-1841.75,0.00011233,2]
[348646193,1736697084961,-872.6,0.00011333,2]
[348646194,1736697084970,-1841.75,0.00011507,2]
[348646195,1736697084980,-872.6,0.00011607,2]
[348646196,1736697084989,-872.6,0.00011881,2]
[348646197,1736697084999,-4171845.55427556,0.00012,2]
[348646198,1736697085009,-54000.0,0.00012,7]
[348646199,1736697085018,-225.06,0.00012,2]
[348646200,1736697085027,-1663.13861102,0.00012,2]
[348646201,1736697085036,-500.0,0.00012,3]
[348646202,1736697085046,-33800.0,0.00012,10]
[348646203,1736697085055,-151.0,0.00012,2]
[348646204,1736697085064,-772.19,0.00012,2]
[348646205,1736697085074,-875.3,0.00012,2]
[348646206,1736697085085,-772.19,0.00012,2]
[348646207,1736697085095,-772.19,0.00012,2]
[348646208,1736697085104,-770.97,0.00012,2]
[348646209,1736697085114,-151.0,0.00012,2]
[348646210,1736697085124,-384.88,0.00012,2]
[348646211,1736697085134,-384.88,0.00012,2]
[348646212,1736697085144,-384.88,0.00012,2]
[348646213,1736697085153,-384.88,0.00012,2]
[348646214,1736697085163,-384.88,0.00012,2]
[348646215,1736697085172,-384.88,0.00012,2]
[348646216,1736697085182,-384.88,0.00012,2]
[348646217,1736697085191,-500.0,0.00012054,2]
[348646218,1736697085200,-500.0,0.00012054,2]
[348646219,1736697085210,-500.0,0.00012054,2]
[348646220,1736697085219,-607.7,0.00012054,2]
[348646221,1736697085230,-500.0,0.00012054,2]
[348646222,1736697085239,-500.0,0.00012054,2]
[348646223,1736697085248,-500.0,0.00012054,2]
[348646224,1736697085257,-500.0,0.00012054,2]
[348646225,1736697085266,-500.0,0.00012054,2]
[348646226,1736697085275,-500.0,0.00012054,2]
[348646227,1736697085285,-897.41,0.00012054,2]
[348646228,1736697085294,-500.0,0.00012054,2]
[348646229,1736697085303,-500.0,0.00012054,2]
[348646230,1736697085312,-651.1,0.00012054,2]
[348646231,1736697085321,-500.0,0.00012054,2]
[348646232,1736697085331,-573.91,0.00012054,2]
[348646233,1736697085342,-500.0,0.00012054,2]
[348646234,1736697085352,-500.0,0.00012054,2]
[348646235,1736697085361,-628.63834641,0.00012054,2]
[348646236,1736697085371,-500.0,0.00012054,2]
[348646237,1736697085381,-500.0,0.00012054,2]
[348646238,1736697085390,-500.0,0.00012054,2]
[348646239,1736697085400,-500.0,0.00012054,2]
[348646240,1736697085409,-708.77,0.00012054,2]
[348646241,1736697085418,-622.73,0.00012054,2]
[348646242,1736697085428,-565.35104032,0.00012054,2]
[348646243,1736697085437,-677.81,0.00012054,2]
[348646244,1736697085447,-600.78,0.00012054,2]
[348646245,1736697085456,-500.0,0.00012054,2]
[348646246,1736697085466,-300.17657699,0.00012054,2]
[348646247,1736697085475,-500.0,0.00012054,2]
[348646248,1736697085485,-500.0,0.00012054,2]
[348646249,1736697085494,-508.11,0.00012054,2]
[348646250,1736697085504,-500.0,0.00012054,2]
[348646251,1736697085513,-500.0,0.00012054,2]
[348646252,1736697085522,-500.0,0.00012054,2]
[348646253,1736697085532,-605.63,0.00012054,2]
[348646254,1736697085542,-500.0,0.00012054,2]
[348646255,1736697085552,-611.43,0.00012054,2]
[348646256,1736697085561,-573.28,0.00012054,2]
[348646257,1736697085571,-807.75,0.00012054,2]
[348646258,1736697085583,-500.0,0.00012054,2]
[348646259,1736697085592,-500.0,0.00012054,2]
[348646260,1736697085602,-885.24,0.00012054,2]
[348646261,1736697085611,-677.43,0.00012054,2]
[348646262,1736697085621,-538.14,0.00012054,2]
[348646263,1736697085631,-683.1,0.00012054,2]
[348646264,1736697085642,-582.99,0.00012054,2]
[348646265,1736697085653,-732.47,0.00012054,2]
[348646266,1736697085663,-659.43,0.00012054,2]
[348646267,1736697085673,-500.0,0.00012054,2]
[348646268,1736697085683,-500.0,0.00012054,2]
[348646269,1736697085692,-677.35,0.00012054,2]
[348646270,1736697085702,-500.0,0.00012054,2]
[348646271,1736697085712,-550.29,0.00012054,2]
[348646272,1736697085723,-508.0,0.00012054,2]
[348646273,1736697085733,-391.20200386,0.00012054,2]
[348646274,1736697085742,-500.0,0.00012054,2]
[348646275,1736697085751,-633.26,0.00012054,2]
[348646276,1736697085762,-500.0,0.00012054,2]
[348646277,1736697085771,-500.0,0.00012054,2]
[348646278,1736697085781,-500.0,0.00012054,2]
[348646279,1736697085791,-500.0,0.00012054,2]
[348646280,1736697085800,-615.11,0.00012054,2]
[348646281,1736697085810,-500.0,0.00012054,2]
[348646282,1736697085820,-626.46,0.00012054,2]
[348646283,1736697085829,-500.0,0.00012054,2]
[348646284,1736697085839,-500.0,0.00012054,2]
[348646285,1736697085849,-641.64,0.00012054,2]
[348646286,1736697085859,-750.91,0.00012054,2]
[348646287,1736697085873,-887.79,0.00012054,2]
[348646288,1736697085884,-500.0,0.00012054,2]
[348646289,1736697085896,-500.0,0.00012054,2]
[348646290,1736697085907,-500.0,0.00012054,2]